fUST/lending_fUST_20240929
["ID","MTS","AMOUNT","RATE_DAILY","PERIOD"]
[339404992,1727580045376,10000.0,0.00022,120]
[339405012,1727580429558,580.15948,0.00014045,2]
[339405013,1727580463385,24900.0,0.00014033,2]
[339405135,1727580638532,-159.388315,0.00014508,2]
[339405136,1727580638545,-159.388315,0.0001455,2]
[339405137,1727580638555,-159.388315,0.00014592,2]
[339405138,1727580638565,-159.388315,0.00014634,2]
[339405139,1727580638575,-159.388315,0.00014676,2]
[339405140,1727580638585,-159.388315,0.00014718,2]
[339405141,1727580638595,-580.15948,0.0001473,2]
[339405142,1727580638604,-159.388315,0.0001476,2]
[339405143,1727580638614,-159.388315,0.00014802,2]
[339405144,1727580638624,-159.388315,0.00014844,2]
[339405145,1727580638635,-159.388315,0.00014886,2]
[339405146,1727580638645,-159.388315,0.00014928,2]
[339405147,1727580638655,-159.388315,0.0001497,2]
[339405148,1727580638665,-159.388315,0.00015012,2]
[339405149,1727580638675,-159.388315,0.00015054,2]
[339405150,1727580638686,-159.388315,0.00015096,2]
[339405151,1727580638696,-159.388315,0.00015138,2]
[339405152,1727580638707,-159.388315,0.0001518,2]
[339405153,1727580638716,-159.388315,0.00015222,2]
[339405154,1727580638724,-159.388315,0.00015264,2]
[339405155,1727580638734,-1376.84603105,0.000153,2]
[339405156,1727580638744,-300.0,0.00015395,2]
[339405157,1727580638753,-300.0,0.00015395,2]
[339405158,1727580638763,-470.22955325,0.00015395,2]
[339405159,1727580638772,-500.0,0.00015395,2]
[339405160,1727580638783,-500.0,0.00015395,2]
[339405161,1727580638794,-501.51052652,0.00015395,2]
[339405162,1727580638803,-500.0,0.00015395,2]
[339405163,1727580638814,-500.0,0.00015395,2]
[339405164,1727580638824,-500.0,0.00015395,2]
[339405165,1727580638835,-500.0,0.00015395,2]
[339405166,1727580638846,-500.0,0.00015395,2]
[339405167,1727580638857,-500.0,0.00015395,2]
[339405168,1727580638867,-524.37084078,0.00015395,2]
[339405169,1727580638877,-500.0,0.00015395,2]
[339405170,1727580638887,-500.0,0.00015395,2]
[339405171,1727580638896,-500.0,0.00015395,2]
[339405172,1727580638906,-500.0,0.00015395,2]
[339405173,1727580638916,-500.0,0.00015395,2]
[339405174,1727580638926,-500.0,0.00015395,2]
[339405175,1727580638936,-500.0,0.00015395,2]
[339405176,1727580638946,-500.0,0.00015395,2]
[339405177,1727580638956,-500.0,0.00015395,2]
[339405179,1727580638966,-393.90576399,0.00015395,2]
[339405180,1727580638976,-500.0,0.00015395,2]
[339405181,1727580638987,-500.0,0.00015395,2]
[339405182,1727580638996,-500.0,0.00015395,2]
[339405183,1727580639005,-500.0,0.00015395,2]
[339405184,1727580639014,-500.0,0.00015395,2]
[339405185,1727580639024,-500.0,0.00015395,2]
[339405186,1727580639033,-500.0,0.00015395,2]
[339405187,1727580639043,-200.0,0.00015395,2]
[339405188,1727580639054,-500.0,0.00015395,2]
[339405189,1727580639063,-322.57211267,0.00015396,2]
[339405190,1727580639072,-580.15948,0.00015415,2]
[339405191,1727580639082,-249.24427392,0.000155,2]
[339405192,1727580639092,-7067.94404438,0.00015924,2]
[339405193,1727580639103,-210.09435732,0.00016262,2]
[339405194,1727580639114,-210.09435729,0.00016277,2]
[339405195,1727580639125,-210.09435729,0.00016292,2]
[339405196,1727580639136,-5000.0,0.000163,2]
[339405197,1727580639146,-941.139507,0.000163,2]
[339405198,1727580639159,-941.139507,0.000163,2]
[339405199,1727580639169,-218.409727,0.000163,2]
[339405200,1727580639179,-151.0,0.000163,2]
[339405201,1727580639190,-151.0,0.000163,2]
[339405202,1727580639201,-347.740698,0.000163,2]
[339405203,1727580639210,-151.0,0.000163,2]
[339405204,1727580639219,-347.740698,0.000163,2]
[339405205,1727580639228,-1176.808763,0.000163,2]
[339405206,1727580639240,-1176.808763,0.000163,2]
[339405207,1727580639249,-151.0,0.000163,2]
[339405208,1727580639259,-151.0,0.000163,2]
[339405209,1727580639268,-151.0,0.000163,2]
[339405210,1727580639277,-151.0,0.000163,2]
[339405211,1727580639287,-151.0,0.000163,2]
[339405212,1727580639297,-151.0,0.000163,2]
[339405213,1727580639308,-2532.515935,0.000163,2]
[339405214,1727580639319,-2532.515935,0.000163,2]
[339405215,1727580639329,-189.069305,0.000163,2]
[339405216,1727580639338,-189.069305,0.000163,2]
[339405217,1727580639348,-3041.091483,0.000163,2]
[339405218,1727580639358,-3041.091483,0.000163,2]
[339405219,1727580639368,-166.352502,0.000163,2]
[339405220,1727580639378,-166.352502,0.000163,2]
[339405221,1727580639387,-653.171727,0.000163,2]
[339405222,1727580639396,-151.0,0.000163,2]
[339405223,1727580639406,-653.171727,0.000163,2]
[339405224,1727580639416,-151.0,0.000163,2]
[339405225,1727580639425,-151.531206,0.000163,2]
[339405226,1727580639434,-151.0,0.000163,2]
[339405227,1727580639443,-151.0,0.000163,2]
[339405228,1727580639453,-152.818671,0.000163,2]
[339405229,1727580639463,-152.818671,0.000163,2]
[339405230,1727580639473,-151.0,0.000163,2]
[339405231,1727580639482,-158.105807,0.000163,2]
[339405232,1727580639492,-152.818671,0.000163,2]
[339405233,1727580639502,-152.818671,0.000163,2]
[339405234,1727580639596,-151.0,0.000163,2]
[339405235,1727580639605,-151.0,0.000163,2]
[339405236,1727580639616,-1178.822005,0.000163,2]
[339405237,1727580639625,-1178.822005,0.000163,2]
[339405238,1727580639635,-1178.822005,0.000163,2]
[339405239,1727580639645,-1178.822005,0.000163,2]
[339405240,1727580639654,-151.0,0.000163,2]
[339405241,1727580639663,-151.0,0.000163,2]
[339405242,1727580639673,-151.0,0.000163,2]
[339405243,1727580639683,-151.0,0.000163,2]
[339405244,1727580639693,-643.567472,0.000163,2]
[339405245,1727580639703,-643.567472,0.000163,2]
[339405246,1727580639713,-643.567472,0.000163,2]
[339405247,1727580639723,-643.567472,0.000163,2]
[339405248,1727580639732,-643.567472,0.000163,2]
[339405249,1727580639742,-643.567472,0.000163,2]
[339405250,1727580639752,-210.09435729,0.00016306,2]
[339405251,1727580639761,-210.09435729,0.00016321,2]
[339405252,1727580639771,-151.0,0.00016322,2]
[339405253,1727580639780,-152.818671,0.00016322,2]
[339405254,1727580639790,-152.818671,0.00016322,2]
[339405255,1727580639799,-151.0,0.00016322,2]
[339405256,1727580639808,-1178.822005,0.00016322,2]
[339405257,1727580639818,-1178.822005,0.00016322,2]
[339405258,1727580639827,-151.0,0.00016322,2]
[339405259,1727580639836,-151.0,0.00016322,2]
[339405260,1727580639845,-643.567472,0.00016322,2]
[339405261,1727580639854,-643.567472,0.00016322,2]
[339405262,1727580639863,-11112.00000001,0.00016322,2]
[339405263,1727580639873,-1000.0,0.00016323,2]
[339405264,1727580639882,-2202.34626314,0.00016323,2]
[339405265,1727580639891,-500.0,0.00016332,2]
[339405266,1727580639900,-180.23282085,0.00016332,2]
[339405267,1727580639910,-212.96703184,0.00016332,2]
[339405268,1727580639919,-500.0,0.00016332,2]
[339405269,1727580639929,-233.20810667,0.00016332,2]
[339405270,1727580639939,-641.55621883,0.00016332,2]
[339405271,1727580639948,-500.0,0.00016332,2]
[339405272,1727580639959,-169.84626525,0.00016332,2]
[339405273,1727580639969,-500.0,0.00016332,2]
[339405274,1727580639979,-497.92406459,0.00016332,2]
[339405275,1727580639988,-500.0,0.00016332,2]
[339405276,1727580639998,-500.0,0.00016332,2]
[339405277,1727580640008,-500.0,0.00016332,2]
[339405278,1727580640018,-500.0,0.00016332,2]
[339405279,1727580640027,-500.0,0.00016332,2]
[339405280,1727580640037,-3364.53322428,0.00016333,2]
[339405311,1727581033035,-300.0,0.00015285,2]
[339405312,1727581033072,-14207.975552,0.00015286,2]
[339405313,1727581048689,222.31,0.00010959,2]
[339405314,1727581054581,-300.0,0.00015286,2]
[339405317,1727581069631,178.17,0.00010959,2]
[339405318,1727581072901,-1869.71981833,0.00016097,2]
[339405319,1727581080165,890.87,0.00010959,2]
[339405320,1727581082903,-300.0,0.00016196,2]
[339405321,1727581082939,-300.0,0.00016196,2]
[339405322,1727581082976,-500.0,0.00016197,2]
[339405323,1727581083013,-502.7078712,0.00016197,2]
[339405324,1727581083053,-500.0,0.00016197,2]
[339405325,1727581083090,-500.0,0.00016197,2]
[339405326,1727581083129,-500.0,0.00016197,2]
[339405327,1727581083167,-500.0,0.00016197,2]
[339405328,1727581083206,-500.0,0.00016197,2]
[339405329,1727581083244,-500.0,0.00016197,2]
[339405330,1727581083283,-500.0,0.00016197,2]
[339405331,1727581083320,-500.0,0.00016197,2]
[339405332,1727581083358,-500.0,0.00016197,2]
[339405333,1727581083395,-500.0,0.00016197,2]
[339405334,1727581083433,-500.0,0.00016197,2]
[339405335,1727581083470,-500.0,0.00016197,2]
[339405336,1727581083633,-500.0,0.00016197,2]
[339405337,1727581083673,-187.35562668,0.00016197,2]
[339405338,1727581083713,-500.0,0.00016197,2]
[339405339,1727581083755,-500.0,0.00016197,2]
[339405340,1727581083792,-500.0,0.00016197,2]
[339405341,1727581083828,-500.0,0.00016197,2]
[339405342,1727581083884,-500.0,0.00016197,2]
[339405343,1727581083927,-500.0,0.00016197,2]
[339405344,1727581083967,-500.0,0.00016197,2]
[339405345,1727581084009,-500.0,0.00016197,2]
[339405346,1727581084049,-500.0,0.00016197,2]
[339405347,1727581084087,-500.0,0.00016197,2]
[339405348,1727581084127,-500.0,0.00016197,2]
[339405349,1727581084167,-500.0,0.00016197,2]
[339405350,1727581084205,-500.0,0.00016197,2]
[339405351,1727581084240,-394.27446039,0.00016197,2]
[339405352,1727581084278,-500.0,0.00016197,2]
[339405353,1727581084315,-500.0,0.00016197,2]
[339405354,1727581084352,-500.0,0.00016197,2]
[339405355,1727581084388,-500.0,0.00016197,2]
[339405356,1727581084427,-500.0,0.00016197,2]
[339405357,1727581084466,-500.0,0.00016197,2]
[339405358,1727581084502,-500.0,0.00016197,2]
[339405359,1727581084546,-268.73556267,0.00016197,2]
[339405360,1727581084585,-500.0,0.00016197,2]
[339405361,1727581084621,-500.0,0.00016197,2]
[339405362,1727581084659,-500.0,0.00016197,2]
[339405363,1727581084697,-500.0,0.00016197,2]
[339405364,1727581084733,-500.0,0.00016197,2]
[339405365,1727581084768,-500.0,0.00016197,2]
[339405366,1727581084804,-500.0,0.00016197,2]
[339405367,1727581084840,-115.04807511,0.00016197,2]
[339405368,1727581131965,184.94,0.00010959,2]
[339405369,1727581142699,308.24,0.00010959,2]
[339405370,1727581163793,616.5,0.00010959,2]
[339405373,1727581214955,-200.0,0.00015367,2]
[339405374,1727581214992,-200.0,0.00015409,2]
[339405375,1727581215026,-200.0,0.00015452,2]
[339405376,1727581215062,-200.0,0.00015494,2]
[339405377,1727581215097,-200.0,0.00015536,2]
[339405379,1727581233176,-281.759193,0.00014987,2]
[339405397,1727581657772,5000.0,0.00014927,2]
[339405453,1727581761505,-300.0,0.00014926,2]
[339405454,1727581761538,-300.0,0.00014926,2]
[339405455,1727581761574,-19900.0,0.00014927,2]
[339405460,1727581781556,281.759194,0.00014611,2]
[339405518,1727581839562,-177.485195,0.00015068,2]
[339405519,1727581839572,-177.485195,0.00015109,2]
[339405520,1727581839581,-177.485195,0.00015151,2]
[339405521,1727581839590,-177.485195,0.00015192,2]
[339405522,1727581839599,-177.485195,0.00015233,2]
[339405523,1727581839609,-177.485195,0.00015275,2]
[339405524,1727581839618,-177.485195,0.00015316,2]
[339405525,1727581839628,-177.485195,0.00015357,2]
[339405526,1727581839637,-177.485195,0.00015399,2]
[339405527,1727581839647,-177.485195,0.0001544,2]
[339405528,1727581839657,-177.485195,0.00015481,2]
[339405529,1727581839667,-300.0,0.00015498,2]
[339405530,1727581839676,-300.0,0.00015498,2]
[339405531,1727581839685,-1002.0,0.000155,2]
[339405532,1727581839696,-177.485195,0.00015522,2]
[339405533,1727581839705,-177.485195,0.00015564,2]
[339405534,1727581839715,-177.485195,0.00015605,2]
[339405535,1727581839724,-177.485195,0.00015646,2]
[339405536,1727581839733,-177.485195,0.00015688,2]
[339405537,1727581839743,-177.485195,0.00015729,2]
[339405538,1727581839752,-177.485195,0.0001577,2]
[339405539,1727581839761,-177.485195,0.00015812,2]
[339405540,1727581839770,-177.485195,0.00015853,2]
[339405541,1727581839780,-306.7518642,0.0001589,2]
[339405542,1727581839789,-2000.37540763,0.00016,2]
[339405543,1727581839799,-543.18306836,0.00016063,2]
[339405544,1727581839809,-233.81552642,0.00016109,2]
[339405545,1727581839818,-500.0,0.00016109,2]
[339405546,1727581839828,-500.0,0.00016109,2]
[339405547,1727581839837,-500.0,0.00016109,2]
[339405548,1727581839846,-371.12704544,0.00016109,2]
[339405550,1727581840399,-128.87295456,0.00016109,2]
[339405551,1727581840408,-500.0,0.00016109,2]
[339405552,1727581840418,-500.0,0.00016109,2]
[339405553,1727581840427,-500.0,0.00016109,2]
[339405554,1727581840435,-500.0,0.00016109,2]
[339405555,1727581840444,-500.0,0.00016109,2]
[339405556,1727581840453,-500.0,0.00016109,2]
[339405557,1727581840463,-63.61571463,0.00016109,2]
[339405558,1727581840474,-436.38428537,0.00016109,2]
[339405559,1727581840483,-500.0,0.00016109,2]
[339405560,1727581840493,-500.0,0.00016109,2]
[339405561,1727581840502,-500.0,0.00016109,2]
[339405562,1727581840511,-500.0,0.00016109,2]
[339405563,1727581840521,-613.64476249,0.00016109,2]
[339405564,1727581840530,-500.0,0.00016109,2]
[339405565,1727581840539,-7067.94404438,0.0001611,2]
[339405566,1727581840549,-226.22500841,0.0001611,2]
[339405567,1727581840561,-75.99663388,0.0001611,2]
[339405568,1727581840571,-54164.46197279,0.00016128,2]
[339405569,1727581840580,-217.31330611,0.00016138,2]
[339405570,1727581840589,-500.0,0.00016138,2]
[339405571,1727581840598,-605.42914328,0.00016138,2]
[339405572,1727581840608,-532.84527289,0.00016138,2]
[339405573,1727581840617,-500.0,0.00016138,2]
[339405574,1727581840626,-500.0,0.00016138,2]
[339405575,1727581840635,-214.74711415,0.00016138,2]
[339405576,1727581840645,-500.0,0.00016138,2]
[339405577,1727581840654,-500.0,0.00016138,2]
[339405578,1727581840663,-500.0,0.00016138,2]
[339405579,1727581840672,-500.0,0.00016138,2]
[339405580,1727581840683,-500.0,0.00016138,2]
[339405581,1727581840691,-7619.73923975,0.00016139,2]
[339405582,1727581840703,-317.79355,0.00016139,2]
[339405585,1727581843461,-1019.10955106,0.00016139,2]
[339405597,1727581897336,1379.98499136,0.00014827,2]
[339405610,1727582439305,316.519046,0.00014098,2]
[339405621,1727582612403,265.8746511,0.00013966,2]
[339405622,1727582640614,418.377832,0.00013992,2]
[339405624,1727582689359,175.1344192,0.00013278,2]
[339405626,1727582722217,-614.0431274,0.00014162,2]
[339405627,1727582722248,-730.7306789,0.00014211,2]
[339405628,1727582722281,-162.08720301,0.00014776,2]
[339405629,1727582722313,-162.08720301,0.00014778,2]
[339405630,1727582722347,-316.519046,0.00014783,2]
[339405631,1727582722378,-500.0,0.00014827,2]
[339405632,1727582722411,-300.0,0.00014876,2]
[339405633,1727582722444,-300.0,0.00014876,2]
[339405634,1727582722479,-500.0,0.00014876,2]
[339405635,1727582722515,-457.07164028,0.00014876,2]
[339405636,1727582722550,-24900.0,0.00014877,2]
[339405637,1727582726284,201.48109486,0.00014878,2]
[339405640,1727582801155,-193.58380099,0.0001526,2]
[339405641,1727582801176,-6.58782687,0.0001526,2]
[339405643,1727582823001,500.0,0.000146,2]
[339405644,1727582823390,355.98000654,0.000146,2]
[339405646,1727582856338,-144.01999346,0.000146,2]
[339405647,1727582856374,-500.0,0.000146,2]
[339405648,1727582856407,-500.0,0.000146,2]
[339405649,1727582856442,-500.0,0.000146,2]
[339405650,1727582856475,-500.0,0.000146,2]
[339405651,1727582856510,-500.0,0.000146,2]
[339405652,1727582856542,-500.0,0.000146,2]
[339405653,1727582856575,-500.0,0.000146,2]
[339405654,1727582856608,-500.0,0.000146,2]
[339405655,1727582856641,-500.0,0.000146,2]
[339405656,1727582856676,-500.0,0.000146,2]
[339405657,1727582856708,-500.0,0.000146,2]
[339405658,1727582856878,-431.00217751,0.000146,2]
[339405666,1727582951134,-272.2374215,0.00014811,2]
[339405707,1727583035063,-158.259523,0.0001487,2]
[339405708,1727583035074,-399.39617313,0.0001526,2]
[339405709,1727583035213,-165.5114773,0.000153,2]
[339405710,1727583035223,-153.0,0.000156,2]
[339405711,1727583035233,-153.0,0.000157,2]
[339405712,1727583035242,-153.0,0.000157,2]
[339405713,1727583035252,-153.0,0.000157,2]
[339405714,1727583035261,-7067.94404438,0.00015725,2]
[339405715,1727583035270,-153.0,0.000158,2]
[339405716,1727583035279,-300.0,0.00015889,2]
[339405717,1727583035289,-300.0,0.00015889,2]
[339405718,1727583035299,-153.0,0.0001589,2]
[339405719,1727583035309,-153.0,0.0001589,2]
[339405720,1727583035318,-153.0,0.0001589,2]
[339405721,1727583035328,-153.0,0.0001589,2]
[339405722,1727583035338,-153.0,0.0001589,2]
[339405723,1727583035347,-153.0,0.0001589,2]
[339405724,1727583035356,-153.0,0.0001589,2]
[339405725,1727583035365,-386.7495503,0.0001589,2]
[339405726,1727583035375,-153.0,0.0001589,2]
[339405727,1727583035384,-153.0,0.0001589,2]
[339405728,1727583035394,-153.0,0.0001589,2]
[339405729,1727583035403,-153.0,0.0001589,2]
[339405730,1727583035413,-153.0,0.0001589,2]
[339405731,1727583035422,-153.0,0.0001589,2]
[339405732,1727583035431,-153.0,0.0001589,2]
[339405733,1727583035440,-153.0,0.0001589,2]
[339405734,1727583035450,-153.0,0.0001589,2]
[339405735,1727583035462,-153.0,0.0001589,2]
[339405736,1727583035472,-153.0,0.0001589,2]
[339405737,1727583035483,-153.0,0.0001589,2]
[339405738,1727583035493,-153.0,0.0001589,2]
[339405739,1727583035503,-153.0,0.0001589,2]
[339405740,1727583035514,-153.0,0.000159,2]
[339405741,1727583035523,-306.0,0.000159,2]
[339405742,1727583035533,-153.0,0.000159,2]
[339405743,1727583035544,-153.0,0.000159,2]
[339405744,1727583035555,-153.0,0.000159,2]
[339405745,1727583035567,-153.0,0.000159,2]
[339405746,1727583035577,-153.0,0.000159,2]
[339405747,1727583035588,-153.0,0.000159,2]
[339405748,1727583035599,-2000.0,0.00016,2]
[339405749,1727583035612,-2838.2923419,0.00016,2]
[339405750,1727583035621,-1000.0,0.00016029,2]
[339405751,1727583035631,-1982.11163688,0.00016049,2]
[339405752,1727583035642,-184.73720006,0.00016049,2]
[339405753,1727583035651,-3011.88941751,0.00016094,2]
[339405773,1727583038733,-279.79278161,0.00016094,2]
[339405780,1727583039036,-50872.77977367,0.00016094,2]
[339405781,1727583039045,-153.0,0.000161,2]
[339405782,1727583039055,-153.0,0.00016137,2]
[339405783,1727583039064,-153.0,0.00016137,2]
[339405784,1727583039073,-153.0,0.00016137,2]
[339405785,1727583039083,-153.0,0.00016137,2]
[339405786,1727583039093,-153.0,0.00016137,2]
[339405787,1727583039102,-151.0,0.00016139,2]
[339405788,1727583039112,-373.866433,0.00016139,2]
[339405789,1727583039121,-373.866433,0.00016139,2]
[339405790,1727583039131,-151.0,0.00016139,2]
[339405791,1727583039140,-151.0,0.00016139,2]
[339405792,1727583039150,-151.0,0.00016139,2]
[339405793,1727583039160,-151.0,0.00016139,2]
[339405794,1727583039170,-2678.501952,0.00016139,2]
[339405795,1727583039180,-2678.501952,0.00016139,2]
[339405796,1727583039189,-160.218715,0.00016139,2]
[339405797,1727583039199,-160.218715,0.00016139,2]
[339405798,1727583039208,-160.218715,0.00016139,2]
[339405799,1727583039218,-160.218715,0.00016139,2]
[339405800,1727583039227,-550.698382,0.00016139,2]
[339405801,1727583039238,-550.698382,0.00016139,2]
[339405802,1727583039247,-550.698382,0.00016139,2]
[339405803,1727583039256,-550.698382,0.00016139,2]
[339405804,1727583039265,-2736.982335,0.00016139,2]
[339405805,1727583039275,-2736.982335,0.00016139,2]
[339405806,1727583039284,-847.025556,0.00016139,2]
[339405807,1727583039293,-847.025556,0.00016139,2]
[339405808,1727583039302,-1059.127886,0.00016139,2]
[339405809,1727583039312,-1059.127886,0.00016139,2]
[339405810,1727583039323,-605.42914328,0.00016147,2]
[339405811,1727583039334,-532.84527289,0.00016147,2]
[339405812,1727583039343,-217.31330611,0.00016147,2]
[339405813,1727583039353,-500.0,0.00016147,2]
[339405814,1727583039362,-399.42413425,0.00016147,2]
[339405815,1727583039372,-500.0,0.00016147,2]
[339405816,1727583039381,-29263.19345917,0.00016149,2]
[339405850,1727583040686,-36358.05166107,0.00016149,2]
[339405851,1727583040695,-151.8524,0.00016149,2]
[339405852,1727583040704,-155.893003,0.00016149,2]
[339405853,1727583040713,-151.0,0.00016149,2]
[339405854,1727583040722,-258.59139,0.00016149,2]
[339405855,1727583040731,-373.866433,0.00016149,2]
[339405856,1727583040740,-1554.559813,0.00016149,2]
[339405857,1727583040750,-373.866433,0.00016149,2]
[339405858,1727583040760,-1554.559813,0.00016149,2]
[339405859,1727583040769,-151.64156,0.00016149,2]
[339405860,1727583040780,-151.0,0.00016149,2]
[339405861,1727583040789,-587.854554,0.00016149,2]
[339405862,1727583040798,-157.978233,0.00016149,2]
[339405863,1727583040808,-587.854554,0.00016149,2]
[339405864,1727583040818,-151.0,0.00016149,2]
[339405865,1727583040827,-151.0,0.00016149,2]
[339405866,1727583040839,-151.0,0.00016149,2]
[339405867,1727583040848,-151.0,0.00016149,2]
[339405868,1727583040858,-151.0,0.00016149,2]
[339405869,1727583040868,-230.467734,0.00016149,2]
[339405870,1727583040878,-230.467734,0.00016149,2]
[339405871,1727583040889,-386.140483,0.00016149,2]
[339405872,1727583040900,-386.140483,0.00016149,2]
[339405873,1727583040908,-386.140483,0.00016149,2]
[339405874,1727583040918,-386.140483,0.00016149,2]
[339405875,1727583040929,-151.0,0.00016149,2]
[339405876,1727583040938,-151.0,0.00016149,2]
[339405877,1727583040948,-151.0,0.00016149,2]
[339405878,1727583040957,-151.0,0.00016149,2]
[339405879,1727583040967,-1338.396506,0.00016149,2]
[339405880,1727583040979,-1338.396506,0.00016149,2]
[339405881,1727583040989,-479.741247,0.00016149,2]
[339405882,1727583041000,-479.741247,0.00016149,2]
[339405883,1727583041010,-479.741247,0.00016149,2]
[339405884,1727583041020,-479.741247,0.00016149,2]
[339405885,1727583041031,-2170.578063,0.00016149,2]
[339405886,1727583041042,-2170.578063,0.00016149,2]
[339405887,1727583041053,-151.0,0.00016149,2]
[339405888,1727583041062,-151.0,0.00016149,2]
[339405889,1727583041072,-340.047218,0.00016149,2]
[339405890,1727583041082,-151.0,0.00016149,2]
[339405891,1727583041094,-340.047218,0.00016149,2]
[339405892,1727583041105,-151.0,0.00016149,2]
[339405893,1727583041116,-340.047218,0.00016149,2]
[339405894,1727583041126,-340.047218,0.00016149,2]
[339405895,1727583041136,-151.0,0.00016149,2]
[339405896,1727583041147,-151.0,0.00016149,2]
[339405897,1727583041157,-151.0,0.00016149,2]
[339405898,1727583041169,-151.0,0.00016149,2]
[339405899,1727583041191,-312.966628,0.00016149,2]
[339405900,1727583041206,-312.966628,0.00016149,2]
[339405901,1727583041225,-312.966628,0.00016149,2]
[339405902,1727583041245,-312.966628,0.00016149,2]
[339405903,1727583041261,-151.0,0.00016149,2]
[339405904,1727583041274,-151.0,0.00016149,2]
[339405905,1727583041292,-151.0,0.00016149,2]
[339405906,1727583041312,-151.0,0.00016149,2]
[339405907,1727583041331,-2678.501952,0.00016149,2]
[339405908,1727583041350,-2678.501952,0.00016149,2]
[339405909,1727583041366,-2350.268806,0.00016149,2]
[339405910,1727583041382,-1724.36210346,0.00016149,2]
[339405963,1727583796859,504.04414463,0.0001411,2]
[339405964,1727583978830,-209.188916,0.00014396,2]
[339405965,1727583985250,-269.3832993,0.00014586,2]
[339405966,1727583990536,-300.0,0.00014611,2]
[339405967,1727583990596,-300.0,0.00014611,2]
[339405968,1727583990639,-15029.9583401,0.00014612,2]
[339405969,1727583990679,-1085.206653,0.00014614,2]
[339405972,1727584116361,15065.4298635,0.00014,4]
[339405973,1727584119551,19516.44693699,0.00014,2]
[339405974,1727584120079,21196.53525692,0.0001,2]
[339405976,1727584153155,-300.0,0.00014658,2]
[339405977,1727584153180,-300.0,0.00014658,2]
[339405978,1727584153205,-6482.3747098,0.00014659,2]
[339406021,1727584234164,-5080.48708217,0.00014659,2]
[339406028,1727584237988,-3.54547446,0.00014659,2]
[339406029,1727584238003,-4530.50880277,0.00014659,2]
[339406030,1727584238013,-300.0,0.00015113,2]
[339406031,1727584238023,-300.0,0.00015114,2]
[339406032,1727584238034,-239.883101,0.00015115,2]
[339406033,1727584238044,-239.883101,0.00015156,2]
[339406034,1727584238055,-239.883101,0.00015197,2]
[339406035,1727584238064,-239.883101,0.00015239,2]
[339406037,1727584238074,-239.883101,0.0001528,2]
[339406038,1727584238084,-1085.206653,0.00015299,2]
[339406039,1727584238094,-306.0,0.000153,2]
[339406040,1727584238103,-239.883101,0.00015322,2]
[339406041,1727584238113,-239.883101,0.00015363,2]
[339406042,1727584238122,-239.883101,0.00015405,2]
[339406043,1727584238132,-239.883101,0.00015446,2]
[339406044,1727584238141,-239.883101,0.00015488,2]
[339406045,1727584238151,-153.0,0.000155,2]
[339406046,1727584238160,-153.0,0.000155,2]
[339406047,1727584238169,-239.883101,0.00015529,2]
[339406048,1727584238179,-412.4195684,0.00015562,2]
[339406049,1727584238188,-412.4195684,0.00015562,2]
[339406050,1727584238197,-412.4195684,0.00015562,2]
[339406051,1727584238206,-239.883101,0.00015571,2]